fUST/lending_fUST_20240906
["ID","MTS","AMOUNT","RATE_DAILY","PERIOD"]
[337387506,1725636646792,-500.0,0.00019452,2]
[337387509,1725636646802,-500.0,0.00019452,2]
[337387512,1725636646811,-894.54,0.00019452,2]
[337387515,1725636646823,-500.0,0.00019452,2]
[337387517,1725636646835,-532.15,0.00019452,2]
[337387519,1725636646846,-500.0,0.00019452,2]
[337387521,1725636646857,-500.0,0.00019452,2]
[337387523,1725636646866,-500.0,0.00019452,2]
[337387525,1725636646876,-500.0,0.00019452,2]
[337387527,1725636646885,-500.0,0.00019452,2]
[337387529,1725636646894,-500.0,0.00019452,2]
[337387531,1725636646904,-500.0,0.00019452,2]
[337387533,1725636646913,-500.0,0.00019452,2]
[337387535,1725636646923,-500.0,0.00019452,2]
[337387537,1725636646932,-1106.16,0.00019452,2]
[337387539,1725636646941,-500.0,0.00019452,2]
[337387541,1725636646950,-694.95,0.00019452,2]
[337387543,1725636646960,-555.76202489,0.00019452,2]
[337387545,1725636646972,-500.0,0.00019452,2]
[337387547,1725636646981,-533.73871077,0.00019452,2]
[337387549,1725636646993,-1039.3,0.00019452,2]
[337387551,1725636647002,-500.0,0.00019452,2]
[337387553,1725636647013,-500.0,0.00019452,2]
[337387556,1725636647024,-500.0,0.00019452,2]
[337387558,1725636647034,-500.0,0.00019452,2]
[337387560,1725636647046,-349.30392841,0.00019452,2]
[337387562,1725636647057,-500.0,0.00019452,2]
[337387564,1725636647067,-500.0,0.00019452,2]
[337387566,1725636647077,-500.0,0.00019452,2]
[337387568,1725636647087,-1216.21,0.00019452,2]
[337387571,1725636647096,-500.0,0.00019452,2]
[337387573,1725636647106,-500.0,0.00019452,2]
[337387575,1725636647115,-500.0,0.00019452,2]
[337387577,1725636647125,-542.2,0.00019452,2]
[337387579,1725636647136,-403.11049838,0.00019452,2]
[337387581,1725636647145,-500.0,0.00019452,2]
[337387583,1725636647155,-500.0,0.00019452,2]
[337387585,1725636647166,-500.0,0.00019452,2]
[337387587,1725636647175,-500.0,0.00019452,2]
[337387589,1725636647185,-500.0,0.00019452,2]
[337387591,1725636647196,-500.0,0.00019452,2]
[337387593,1725636647206,-626.63,0.00019452,2]
[337387595,1725636647218,-983.07,0.00019452,2]
[337387597,1725636647228,-500.0,0.00019452,2]
[337387600,1725636647240,-500.0,0.00019452,2]
[337387602,1725636647253,-500.0,0.00019452,2]
[337387604,1725636647263,-500.0,0.00019452,2]
[337387606,1725636647273,-1154.46,0.00019452,2]
[337387608,1725636647283,-908.39,0.00019452,2]
[337387610,1725636647292,-1103.99,0.00019452,2]
[337387612,1725636647302,-500.0,0.00019452,2]
[337387614,1725636647313,-500.0,0.00019452,2]
[337387616,1725636647323,-500.0,0.00019452,2]
[337387618,1725636647333,-500.0,0.00019452,2]
[337387620,1725636647344,-1168.93,0.00019452,2]
[337387622,1725636647355,-500.0,0.00019452,2]
[337387624,1725636647365,-500.0,0.00019452,2]
[337387627,1725636647376,-500.0,0.00019452,2]
[337387629,1725636647386,-500.0,0.00019452,2]
[337387631,1725636647395,-500.0,0.00019452,2]
[337387633,1725636647406,-500.0,0.00019452,2]
[337387635,1725636647418,-786.67,0.00019452,2]
[337387637,1725636647430,-500.0,0.00019452,2]
[337387639,1725636647442,-500.0,0.00019452,2]
[337387641,1725636647452,-901.9,0.00019452,2]
[337387643,1725636647462,-526.65,0.00019452,2]
[337387646,1725636647472,-500.0,0.00019452,2]
[337387648,1725636647482,-500.0,0.00019452,2]
[337387650,1725636647495,-500.0,0.00019452,2]
[337387652,1725636647506,-500.0,0.00019452,2]
[337387654,1725636647517,-500.0,0.00019452,2]
[337387656,1725636647527,-500.0,0.00019452,2]
[337387658,1725636647537,-500.0,0.00019452,2]
[337387660,1725636647548,-577.4,0.00019452,2]
[337387662,1725636647560,-500.0,0.00019452,2]
[337387664,1725636647570,-1421.19,0.00019452,2]
[337387667,1725636647580,-500.0,0.00019452,2]
[337387669,1725636647590,-500.0,0.00019452,2]
[337387671,1725636647600,-329.68,0.00019452,2]
[337387673,1725636647610,-1727.7,0.00019452,2]
[337387675,1725636647619,-500.0,0.00019452,2]
[337387677,1725636647629,-500.0,0.00019452,2]
[337387679,1725636647639,-500.0,0.00019452,2]
[337387681,1725636647649,-500.0,0.00019452,2]
[337387683,1725636647659,-500.0,0.00019452,2]
[337387685,1725636647668,-516.9,0.00019452,2]
[337387687,1725636647678,-500.0,0.00019452,2]
[337387689,1725636647688,-527.27,0.00019452,2]
[337387691,1725636647698,-500.0,0.00019452,2]
[337387694,1725636647710,-500.0,0.00019452,2]
[337387696,1725636647720,-500.0,0.00019452,2]
[337387698,1725636647730,-500.0,0.00019452,2]
[337387700,1725636647739,-500.0,0.00019452,2]
[337387702,1725636647753,-743.95,0.00019452,2]
[337387704,1725636647763,-1143.03,0.00019452,2]
[337387706,1725636647773,-500.0,0.00019452,2]
[337387708,1725636647782,-583.27924185,0.00019452,2]
[337387710,1725636647792,-1217.22,0.00019452,2]
[337387712,1725636647802,-500.0,0.00019452,2]
[337387714,1725636647811,-500.0,0.00019452,2]
[337387716,1725636647821,-500.0,0.00019452,2]
[337387718,1725636647830,-500.0,0.00019452,2]
[337387720,1725636647840,-752.73,0.00019452,2]
[337387722,1725636647849,-500.0,0.00019452,2]
[337387724,1725636647859,-500.0,0.00019452,2]
[337387726,1725636647868,-919.19,0.00019452,2]
[337387728,1725636647878,-500.0,0.00019452,2]
[337387730,1725636647888,-857.92,0.00019452,2]
[337387732,1725636647898,-500.0,0.00019452,2]
[337387734,1725636647908,-500.0,0.00019452,2]
[337387736,1725636647917,-500.0,0.00019452,2]
[337387738,1725636647926,-500.0,0.00019452,2]
[337387740,1725636647936,-500.0,0.00019452,2]
[337387742,1725636647946,-500.0,0.00019452,2]
[337387744,1725636647956,-500.0,0.00019452,2]
[337387746,1725636647967,-500.0,0.00019452,2]
[337387748,1725636647980,-1716.46,0.00019452,2]
[337387750,1725636647990,-500.0,0.00019452,2]
[337387752,1725636648003,-1042.21,0.00019452,2]
[337387754,1725636648014,-500.0,0.00019452,2]
[337387756,1725636648024,-500.0,0.00019452,2]
[337387758,1725636648034,-500.0,0.00019452,2]
[337387760,1725636648044,-1092.77,0.00019452,2]
[337387762,1725636648054,-500.0,0.00019452,2]
[337387764,1725636648064,-500.0,0.00019452,2]
[337387767,1725636648074,-500.0,0.00019452,2]
[337387769,1725636648084,-500.0,0.00019452,2]
[337387771,1725636648093,-500.0,0.00019452,2]
[337387773,1725636648103,-500.0,0.00019452,2]
[337387775,1725636648113,-632.63,0.00019452,2]
[337387777,1725636648123,-358.10479784,0.00019452,2]
[337387779,1725636648135,-500.0,0.00019452,2]
[337387781,1725636648145,-500.0,0.00019452,2]
[337387782,1725636648156,-529.7100786,0.00019452,2]
[337387783,1725636648166,-490.96411894,0.00019452,2]
[337387784,1725636648177,-500.0,0.00019452,2]
[337387785,1725636648187,-500.0,0.00019452,2]
[337387786,1725636648196,-500.0,0.00019452,2]
[337387787,1725636648206,-500.0,0.00019452,2]
[337387788,1725636648215,-529.05,0.00019452,2]
[337387789,1725636648225,-500.0,0.00019452,2]
[337387790,1725636648236,-500.0,0.00019452,2]
[337387791,1725636648249,-500.0,0.00019452,2]
[337387792,1725636648261,-1022.18,0.00019452,2]
[337387793,1725636648271,-500.0,0.00019452,2]
[337387794,1725636648282,-500.0,0.00019452,2]
[337387795,1725636648293,-1139.71,0.00019452,2]
[337387796,1725636648304,-500.0,0.00019452,2]
[337387797,1725636648314,-500.0,0.00019452,2]
[337387800,1725636648324,-500.0,0.00019452,2]
[337387801,1725636648335,-763.64,0.00019452,2]
[337387803,1725636648345,-151.0,0.00019452,2]
[337387805,1725636648357,-500.0,0.00019452,2]
[337387807,1725636648367,-393.33631175,0.00019452,2]
[337387808,1725636648378,-691.54,0.00019452,2]
[337387809,1725636648388,-1441.694523,0.00019452,2]
[337387810,1725636648398,-151.0,0.00019452,2]
[337387811,1725636648408,-1441.694523,0.00019452,2]
[337387812,1725636648419,-500.0,0.00019452,2]
[337387814,1725636648429,-500.0,0.00019452,2]
[337387816,1725636648439,-500.0,0.00019452,2]
[337387818,1725636648449,-500.0,0.00019452,2]
[337387820,1725636648460,-600.26,0.00019452,2]
[337387822,1725636648471,-1176.51,0.00019452,2]
[337387825,1725636648481,-184.94174254,0.00019452,2]
[337387827,1725636648493,-500.0,0.00019452,2]
[337387829,1725636648503,-1936.76,0.00019452,2]
[337387831,1725636648513,-500.0,0.00019452,2]
[337387833,1725636648523,-500.0,0.00019452,2]
[337387834,1725636648533,-206.553808,0.00019452,2]
[337387836,1725636648544,-500.0,0.00019452,2]
[337387837,1725636648554,-151.0,0.00019452,2]
[337387838,1725636648565,-151.0,0.00019452,2]
[337387839,1725636648576,-206.553808,0.00019452,2]
[337387840,1725636648586,-500.0,0.00019452,2]
[337387841,1725636648597,-500.0,0.00019452,2]
[337387842,1725636648607,-1848.67,0.00019452,2]
[337387843,1725636648618,-1903.46,0.00019452,2]
[337387844,1725636648628,-500.0,0.00019452,2]
[337387845,1725636648638,-500.0,0.00019452,2]
[337387846,1725636648648,-621.945096,0.00019452,2]
[337387847,1725636648658,-621.945096,0.00019452,2]
[337387848,1725636648668,-500.0,0.00019452,2]
[337387849,1725636648678,-500.0,0.00019452,2]
[337387850,1725636648688,-500.0,0.00019452,2]
[337387851,1725636648698,-500.0,0.00019452,2]
[337387852,1725636648709,-512.16,0.00019452,2]
[337387853,1725636648720,-1174.64,0.00019452,2]
[337387854,1725636648730,-1126.68,0.00019452,2]
[337387855,1725636648742,-500.0,0.00019452,2]
[337387856,1725636648761,-500.0,0.00019452,2]
[337387857,1725636648770,-500.0,0.00019452,2]
[337387858,1725636648780,-1779.74,0.00019452,2]
[337387859,1725636648790,-550.08989126,0.00019452,2]
[337387860,1725636648800,-151.0,0.00019452,2]
[337387861,1725636648810,-1968.75,0.00019452,2]
[337387862,1725636648819,-500.0,0.00019452,2]
[337387863,1725636648830,-500.0,0.00019452,2]
[337387864,1725636648840,-151.0,0.00019452,2]
[337387865,1725636648849,-151.0,0.00019452,2]
[337387866,1725636648860,-151.0,0.00019452,2]
[337387867,1725636648870,-722.337951,0.00019452,2]
[337387868,1725636648880,-500.0,0.00019452,2]
[337387869,1725636648890,-722.337951,0.00019452,2]
[337387870,1725636648900,-565.35,0.00019452,2]
[337387871,1725636648910,-500.0,0.00019452,2]
[337387872,1725636648921,-500.0,0.00019452,2]
[337387873,1725636648932,-998.66029,0.00019452,2]
[337387874,1725636648943,-998.66029,0.00019452,2]
[337387875,1725636648953,-1665.94,0.00019452,2]
[337387876,1725636648964,-53807.54,0.00019452,2]
[337387877,1725636648977,-500.0,0.00019452,2]
[337387878,1725636648987,-500.0,0.00019452,2]
[337387879,1725636649003,-500.0,0.00019452,2]
[337387880,1725636649014,-500.0,0.00019452,2]
[337387881,1725636649024,-500.0,0.00019452,2]
[337387882,1725636649034,-500.0,0.00019452,2]
[337387883,1725636649049,-500.0,0.00019452,2]
[337387884,1725636649059,-151.0,0.00019452,2]
[337387885,1725636649069,-500.0,0.00019452,2]
[337387886,1725636649079,-1244.8,0.00019452,2]
[337387887,1725636649089,-151.0,0.00019452,2]
[337387888,1725636649099,-500.0,0.00019452,2]
[337387889,1725636649109,-41642.77,0.00019452,2]
[337387890,1725636649119,-500.0,0.00019452,2]
[337387891,1725636649129,-555.9844036,0.00019452,2]
[337387892,1725636649139,-1657.41,0.00019452,2]
[337387893,1725636649149,-1552.7,0.00019452,2]
[337387894,1725636649159,-500.0,0.00019452,2]
[337387895,1725636649169,-500.0,0.00019452,2]
[337387896,1725636649180,-164.15737138,0.00019452,2]
[337387897,1725636649190,-1252.18,0.00019452,2]
[337387898,1725636649202,-575.82,0.00019452,2]
[337387899,1725636649212,-151.0,0.00019452,2]
[337387900,1725636649223,-500.0,0.00019452,2]
[337387901,1725636649234,-775.17,0.00019452,2]
[337387902,1725636649250,-275.034798,0.00019452,2]
[337387903,1725636649261,-275.034798,0.00019452,2]
[337387904,1725636649271,-500.0,0.00019452,2]
[337387905,1725636649281,-807.79,0.00019452,2]
[337387906,1725636649291,-500.0,0.00019452,2]
[337387907,1725636649302,-151.0,0.00019452,2]
[337387908,1725636649313,-500.0,0.00019452,2]
[337387909,1725636649323,-500.0,0.00019452,2]
[337387910,1725636649503,-500.0,0.00019452,2]
[337387911,1725636649513,-500.0,0.00019452,2]
[337387912,1725636649523,-151.0,0.00019452,2]
[337387913,1725636649534,-997.74,0.00019452,2]
[337387915,1725636649543,-500.0,0.00019452,2]
[337387916,1725636649553,-606.89,0.00019452,2]
[337387918,1725636649563,-500.0,0.00019452,2]
[337387920,1725636649573,-22657.75,0.00019452,2]
[337387921,1725636649583,-809.63,0.00019452,2]
[337387923,1725636649593,-501.97710126,0.00019452,2]
[337387925,1725636649603,-500.0,0.00019452,2]
[337387927,1725636649613,-500.0,0.00019452,2]
[337387928,1725636649623,-1111.23,0.00019452,2]
[337387929,1725636649633,-1917.36,0.00019452,2]
[337387930,1725636649643,-57123.15,0.00019452,2]
[337387931,1725636649653,-1400.26,0.00019452,2]
[337387932,1725636649663,-500.0,0.00019452,2]
[337387933,1725636649673,-500.0,0.00019452,2]
[337387934,1725636649683,-500.0,0.00019452,2]
[337387935,1725636649692,-500.0,0.00019452,2]
[337387936,1725636649702,-2594.96,0.00019452,2]
[337387937,1725636649711,-3639.61,0.00019452,2]
[337387938,1725636649721,-1923.34,0.00019452,2]
[337387939,1725636649730,-2021.65,0.00019452,2]
[337387940,1725636649740,-151.0,0.00019452,2]
[337387941,1725636649753,-500.0,0.00019452,2]
[337387943,1725636649764,-1588.19,0.00019452,2]
[337387944,1725636649773,-912.021377,0.00019452,2]
[337387945,1725636649783,-500.0,0.00019452,2]
[337387946,1725636649794,-500.0,0.00019452,2]
[337387947,1725636649804,-912.021377,0.00019452,2]
[337387948,1725636649815,-500.0,0.00019452,2]
[337387949,1725636649825,-1879.69,0.00019452,2]
[337387950,1725636649835,-500.0,0.00019452,2]
[337387951,1725636649845,-1560.24,0.00019452,2]
[337387952,1725636649856,-500.0,0.00019452,2]
[337387954,1725636649866,-1524.56,0.00019452,2]
[337387955,1725636649876,-1617.57,0.00019452,2]
[337387956,1725636649885,-500.0,0.00019452,2]
[337387957,1725636649894,-500.0,0.00019452,2]
[337387958,1725636649905,-500.0,0.00019452,2]
[337387960,1725636649915,-968.13,0.00019452,2]
[337387961,1725636649924,-500.0,0.00019452,2]
[337387962,1725636649934,-520.76,0.00019452,2]
[337387963,1725636649943,-500.0,0.00019452,2]
[337387964,1725636649952,-2418.56,0.00019452,2]
[337387966,1725636649962,-500.0,0.00019452,2]
[337387967,1725636649974,-4785.64,0.00019452,2]
[337387968,1725636649984,-275.205914,0.00019452,2]
[337387969,1725636649995,-2173.27,0.00019452,2]
[337387970,1725636650006,-500.0,0.00019452,2]
[337387972,1725636650017,-464.94776295,0.00019452,2]
[337387973,1725636650029,-524.94,0.00019452,2]
[337387974,1725636650041,-5434.89,0.00019452,2]
[337387975,1725636650052,-500.0,0.00019452,2]
[337387977,1725636650063,-500.0,0.00019452,2]
[337387978,1725636650072,-500.0,0.00019452,2]
[337387979,1725636650082,-991.56,0.00019452,2]
[337387980,1725636650092,-990.51,0.00019452,2]
[337387981,1725636650101,-944.9,0.00019452,2]
[337387982,1725636650112,-500.0,0.00019452,2]
[337387984,1725636650122,-888.56,0.00019452,2]
[337387985,1725636650131,-951.7,0.00019452,2]
[337387986,1725636650141,-500.0,0.00019452,2]
[337387987,1725636650151,-1091.31,0.00019452,2]
[337387988,1725636650161,-500.0,0.00019452,2]
[337387990,1725636650170,-500.0,0.00019452,2]
[337387991,1725636650180,-1580.8,0.00019452,2]
[337387992,1725636650190,-531.42064333,0.00019452,2]
[337387993,1725636650199,-1080.36,0.00019452,2]
[337387994,1725636650209,-500.0,0.00019452,2]
[337387995,1725636650219,-554.5984841,0.00019452,2]
[337387997,1725636650229,-500.0,0.00019452,2]
[337387998,1725636650239,-500.0,0.00019452,2]
[337387999,1725636650252,-680.77,0.00019452,2]
[337388000,1725636650262,-500.0,0.00019452,2]
[337388001,1725636650271,-1584.91,0.00019452,2]
[337388002,1725636650281,-500.0,0.00019452,2]
[337388003,1725636650291,-500.0,0.00019452,2]
[337388004,1725636650301,-500.0,0.00019452,2]
[337388005,1725636650311,-744.84,0.00019452,2]
[337388006,1725636650321,-500.0,0.00019452,2]
[337388007,1725636650330,-2662.59,0.00019452,2]
[337388008,1725636650339,-502.63908232,0.00019452,2]
[337388009,1725636650349,-500.0,0.00019452,2]
[337388010,1725636650358,-500.0,0.00019452,2]
[337388011,1725636650367,-779.73,0.00019452,2]
[337388013,1725636650377,-1146.14,0.00019452,2]
[337388014,1725636650386,-500.0,0.00019452,2]
[337388015,1725636650395,-500.0,0.00019452,2]
[337388016,1725636650405,-1138.55,0.00019452,2]
[337388017,1725636650415,-500.0,0.00019452,2]
[337388018,1725636650424,-500.0,0.00019452,2]
[337388020,1725636650433,-500.0,0.00019452,2]
[337388021,1725636650443,-742.75,0.00019452,2]
[337388022,1725636650453,-575.26,0.00019452,2]
[337388023,1725636650462,-643.67,0.00019452,2]
[337388024,1725636650472,-500.0,0.00019452,2]
[337388025,1725636650482,-494.58732311,0.00019452,2]
[337388027,1725636650492,-1645.9,0.00019452,2]
[337388028,1725636650504,-500.0,0.00019452,2]
[337388029,1725636650514,-675.13,0.00019452,2]
[337388030,1725636650524,-500.0,0.00019452,2]
[337388031,1725636650533,-500.0,0.00019452,2]
[337388033,1725636650542,-503.75139708,0.00019452,2]
[337388034,1725636650552,-500.0,0.00019452,2]
[337388035,1725636650562,-2496.22,0.00019452,2]
[337388036,1725636650572,-1385.18,0.00019452,2]
[337388037,1725636650582,-904.75,0.00019452,2]
[337388038,1725636650593,-500.0,0.00019452,2]
[337388040,1725636650612,-500.0,0.00019452,2]
[337388041,1725636650621,-500.0,0.00019452,2]
[337388042,1725636650631,-500.0,0.00019452,2]
[337388043,1725636650641,-500.0,0.00019452,2]
[337388044,1725636650650,-886.52,0.00019452,2]
[337388046,1725636650659,-500.0,0.00019452,2]
[337388047,1725636650671,-623.1,0.00019452,2]
[337388048,1725636650680,-740.19,0.00019452,2]
[337388049,1725636650690,-156.52942652,0.00019452,2]
[337388050,1725636650700,-500.0,0.00019452,2]
[337388051,1725636650709,-500.0,0.00019473,2]
[337388053,1725636650719,-500.0,0.00019473,2]
[337388054,1725636650729,-500.0,0.00019473,2]
[337388055,1725636650738,-500.0,0.00019721,2]
[337388056,1725636650753,-500.0,0.00019721,2]
[337388057,1725636650763,-500.0,0.00019726,2]
[337388058,1725636650772,-500.0,0.00019726,2]
[337388060,1725636650783,-500.0,0.00019726,2]
[337388061,1725636650793,-851.57,0.00019726,2]
[337388062,1725636650803,-500.0,0.00019726,2]
[337388063,1725636650813,-500.0,0.00019726,2]
[337388064,1725636650822,-500.0,0.00019726,2]
[337388065,1725636650831,-500.0,0.00019726,2]
[337388067,1725636650840,-500.0,0.00019726,2]
[337388068,1725636650850,-500.0,0.00019726,2]
[337388069,1725636650860,-506.97082723,0.00019726,2]
[337388070,1725636650869,-500.0,0.00019726,2]
[337388071,1725636650879,-500.0,0.00019726,2]
[337388073,1725636650889,-500.0,0.00019726,2]
[337388074,1725636650898,-500.0,0.00019726,2]
[337388075,1725636650908,-500.0,0.00019726,2]
[337388076,1725636650918,-500.0,0.00019726,2]
[337388077,1725636650929,-500.0,0.00019726,2]
[337388078,1725636650939,-512.45194907,0.00019726,2]
[337388080,1725636650951,-500.0,0.00019726,2]
[337388081,1725636650962,-500.0,0.00019726,2]
[337388082,1725636650978,-500.0,0.00019726,2]
[337388083,1725636650987,-500.0,0.00019726,2]
[337388084,1725636651001,-500.0,0.00019726,2]
[337388086,1725636651011,-500.0,0.00019726,2]
[337388087,1725636651021,-516.17,0.00019726,2]
[337388088,1725636651031,-500.0,0.00019726,2]
[337388089,1725636651041,-500.0,0.00019726,2]
[337388090,1725636651051,-839.2,0.00019726,2]
[337388092,1725636651063,-500.0,0.00019726,2]
[337388093,1725636651074,-500.0,0.00019726,2]
[337388094,1725636651084,-500.0,0.00019726,2]
[337388095,1725636651093,-500.0,0.00019726,2]
[337388096,1725636651103,-500.0,0.00019726,2]
[337388098,1725636651112,-195.8230372,0.00019726,2]
[337388099,1725636651121,-500.0,0.00019726,2]
[337388100,1725636651132,-338.56419716,0.00019726,2]
[337388101,1725636651143,-181.26722629,0.00019726,2]
[337388102,1725636651154,-500.0,0.00019726,2]
[337388104,1725636651166,-500.0,0.00019726,2]
[337388105,1725636651179,-500.0,0.00019726,2]
[337388106,1725636651192,-500.0,0.00019726,2]
[337388107,1725636651204,-500.0,0.00019726,2]
[337388109,1725636651215,-500.0,0.00019726,2]
[337388110,1725636651225,-516.56,0.00019726,2]
[337388111,1725636651236,-500.0,0.00019726,2]
[337388112,1725636651250,-500.0,0.00019726,2]
[337388113,1725636651259,-500.0,0.00019726,2]
[337388115,1725636651268,-500.0,0.00019726,2]
[337388116,1725636651277,-500.0,0.00019726,2]
[337388117,1725636651286,-500.0,0.00019726,2]
[337388118,1725636651295,-500.0,0.00019726,2]
[337388119,1725636651304,-500.0,0.00019726,2]
[337388121,1725636651315,-274.64919959,0.00019726,2]
[337388122,1725636651325,-209.07734852,0.00019726,2]
[337388123,1725636651336,-500.0,0.00019726,2]
[337388124,1725636651346,-500.0,0.00019726,2]
[337388125,1725636651355,-500.0,0.00019726,2]
[337388127,1725636651366,-500.0,0.00019726,2]
[337388128,1725636651377,-303.54419244,0.00019726,2]
[337388129,1725636651387,-500.0,0.00019726,2]
[337388130,1725636651396,-500.0,0.00019726,2]
[337388131,1725636651406,-500.0,0.00019726,2]
[337388133,1725636651415,-500.0,0.00019726,2]
[337388134,1725636651425,-500.0,0.00019726,2]
[337388135,1725636651434,-894.54,0.00019726,2]
[337388136,1725636651444,-500.0,0.00019726,2]
[337388137,1725636651454,-532.15,0.00019726,2]
[337388139,1725636651467,-500.0,0.00019726,2]
[337388140,1725636651476,-500.0,0.00019726,2]
[337388141,1725636651485,-500.0,0.00019726,2]
[337388142,1725636651496,-298.14710498,0.00019726,2]
[337388143,1725636651506,-500.0,0.00019726,2]
[337388145,1725636651515,-350.27003836,0.00019726,2]
[337388146,1725636651525,-500.0,0.00019726,2]
[337388147,1725636651535,-500.0,0.00019726,2]
[337388148,1725636651545,-1106.16,0.00019726,2]
[337388149,1725636651554,-500.0,0.00019726,2]
[337388151,1725636651563,-694.95,0.00019726,2]
[337388152,1725636651572,-500.0,0.00019726,2]
[337388153,1725636651581,-1039.3,0.00019726,2]
[337388154,1725636651590,-500.0,0.00019726,2]
[337388155,1725636651602,-500.0,0.00019726,2]
[337388156,1725636651612,-500.0,0.00019726,2]
[337388158,1725636651626,-500.0,0.00019726,2]
[337388159,1725636651636,-500.0,0.00019726,2]
[337388160,1725636651646,-500.0,0.00019726,2]
[337388161,1725636651655,-500.0,0.00019726,2]
[337388162,1725636651665,-1216.21,0.00019726,2]
[337388164,1725636651674,-500.0,0.00019726,2]
[337388165,1725636651685,-562.41535323,0.00019726,2]
[337388166,1725636651695,-542.2,0.00019726,2]
[337388167,1725636651704,-500.0,0.00019726,2]
[337388168,1725636651713,-500.0,0.00019726,2]
[337388170,1725636651723,-500.0,0.00019726,2]
[337388171,1725636651732,-500.0,0.00019726,2]
[337388172,1725636651742,-500.0,0.00019726,2]
[337388173,1725636651755,-500.0,0.00019726,2]
[337388174,1725636651765,-626.63,0.00019726,2]
[337388176,1725636651774,-983.07,0.00019726,2]
[337388177,1725636651783,-511.8044449,0.00019726,2]
[337388178,1725636651793,-500.0,0.00019726,2]
[337388179,1725636651802,-500.0,0.00019726,2]
[337388180,1725636651811,-500.0,0.00019726,2]
[337388182,1725636651821,-1154.46,0.00019726,2]
[337388183,1725636651831,-908.39,0.00019726,2]
[337388184,1725636651840,-1103.99,0.00019726,2]
[337388185,1725636651850,-500.0,0.00019726,2]
[337388186,1725636651860,-279.00730067,0.00019726,2]
[337388187,1725636651869,-500.0,0.00019726,2]
[337388189,1725636651879,-500.0,0.00019726,2]
[337388190,1725636651888,-1168.93,0.00019726,2]
[337388191,1725636651899,-500.0,0.00019726,2]
[337388193,1725636651966,-500.0,0.00019726,2]
[337388195,1725636651978,-500.0,0.00019726,2]
[337388196,1725636651988,-293.8445863,0.00019726,2]
[337388197,1725636652001,-500.0,0.00019726,2]
[337388198,1725636652011,-500.0,0.00019726,2]
[337388199,1725636652022,-786.67,0.00019726,2]
[337388201,1725636652032,-500.0,0.00019726,2]
[337388202,1725636652042,-500.0,0.00019726,2]
[337388203,1725636652053,-901.9,0.00019726,2]
[337388204,1725636652063,-526.65,0.00019726,2]
[337388205,1725636652073,-500.0,0.00019726,2]
[337388206,1725636652082,-500.0,0.00019726,2]
[337388208,1725636652092,-536.09823843,0.00019726,2]
[337388209,1725636652101,-500.0,0.00019726,2]
[337388210,1725636652111,-500.0,0.00019726,2]
[337388211,1725636652121,-500.0,0.00019726,2]
[337388212,1725636652130,-500.0,0.00019726,2]
[337388213,1725636652140,-577.4,0.00019726,2]